fUSD/lending_fUSD_20241121
["ID","MTS","AMOUNT","RATE_DAILY","PERIOD"]
[342950021,1732217462859,-500.0,0.00041643,11]
[342950022,1732217462868,-777.56,0.00041643,11]
[342950023,1732217462877,-6107.76,0.00041643,11]
[342950024,1732217462886,-1212.16,0.00041643,11]
[342950025,1732217462897,-500.0,0.00041643,11]
[342950026,1732217462906,-500.0,0.00041643,11]
[342950027,1732217462915,-156.01117899,0.00041671,30]
[342950028,1732217462924,-151.946,0.00041682,2]
[342950029,1732217462934,-182.10255,0.00041688,30]
[342950030,1732217462944,-800.0,0.00041699,120]
[342950031,1732217462953,-600.0,0.00041699,120]
[342950032,1732217462962,-800.0,0.00041699,120]
[342950033,1732217462971,-800.0,0.00041699,120]
[342950034,1732217462980,-800.0,0.00041699,120]
[342950035,1732217462989,-800.0,0.00041699,120]
[342950036,1732217462998,-2600.0,0.000418,15]
[342950037,1732217463008,-397.03359803,0.00041816,11]
[342950038,1732217463017,-379.19094936,0.00041816,11]
[342950039,1732217463026,-500.0,0.00041816,11]
[342950040,1732217463035,-500.0,0.00041816,11]
[342950041,1732217463045,-685.18,0.00041816,11]
[342950042,1732217463054,-500.0,0.00041816,11]
[342950043,1732217463064,-3088.05,0.00041816,11]
[342950044,1732217463073,-620.25,0.00041816,11]
[342950045,1732217463083,-500.0,0.00041816,11]
[342950046,1732217463093,-500.0,0.00041816,11]
[342950047,1732217463102,-1081.59,0.00041816,11]
[342950048,1732217463112,-500.0,0.00041816,11]
[342950049,1732217463122,-500.0,0.00041816,11]
[342950050,1732217463131,-500.0,0.00041816,11]
[342950051,1732217463140,-548.38,0.00041816,11]
[342950052,1732217463153,-5924.49,0.00041816,2]
[342950053,1732217463162,-741.81,0.00041816,11]
[342950054,1732217463171,-608.57,0.00041816,11]
[342950055,1732217463180,-1091.24,0.00041816,11]
[342950056,1732217463190,-2000.0,0.00041851,120]
[342950057,1732217463200,-955.80869,0.0004187,42]
[342950058,1732217463209,-156.01117899,0.0004189,30]
[342950059,1732217463218,-577726.05223263,0.000419,3]
[342950060,1732217463227,-7080.30992921,0.000419,2]
[342950061,1732217463237,-508.202811,0.000419,49]
[342950062,1732217463246,-151.0,0.000419,14]
[342950063,1732217463256,-284.032786,0.000419,14]
[342950064,1732217463265,-860.21,0.000419,2]
[342950065,1732217463275,-158.0,0.000419,45]
[342950066,1732217463285,-3300.0,0.000419,15]
[342950067,1732217463294,-151.0,0.000419,14]
[342950068,1732217463303,-151.0,0.000419,14]
[342950069,1732217463312,-150.0,0.000419,60]
[342950070,1732217463321,-150.0,0.000419,60]
[342950071,1732217463331,-177.7443,0.000419,60]
[342950072,1732217463340,-628.4384,0.000419,30]
[342950073,1732217463350,-1170.921735,0.000419,14]
[342950074,1732217463360,-1170.921735,0.000419,14]
[342950075,1732217463369,-151.0,0.000419,14]
[342950076,1732217463379,-417.95,0.000419,7]
[342950077,1732217463388,-417.95,0.000419,7]
[342950078,1732217463399,-214.527844,0.000419,14]
[342950079,1732217463408,-214.527844,0.000419,14]
[342950080,1732217463418,-151.0,0.000419,14]
[342950081,1732217463427,-151.0,0.000419,14]
[342950082,1732217463437,-1090.8953,0.000419,30]
[342950083,1732217463446,-2000.0,0.00041908,7]
[342950084,1732217463456,-200.0,0.00041908,7]
[342950085,1732217463465,-200.0,0.00041908,7]
[342950086,1732217463474,-2000.0,0.00041908,7]
[342950087,1732217463484,-200.0,0.00041908,7]
[342950088,1732217463493,-500.0,0.00041917,30]
[342950089,1732217463503,-2110.0,0.00041917,30]
[342950090,1732217463512,-653.448917,0.00041917,14]
[342950091,1732217463521,-653.448917,0.00041917,14]
[342950092,1732217463531,-151.0,0.00041917,14]
[342950093,1732217463540,-151.0,0.00041917,14]
[342950094,1732217463549,-500.0,0.00041917,11]
[342950095,1732217463559,-766.72,0.00041917,11]
[342950096,1732217463568,-318.982561,0.00041917,14]
[342950097,1732217463577,-318.982561,0.00041917,14]
[342950098,1732217463587,-234.30397961,0.00041917,11]
[342950099,1732217463596,-581.503174,0.00041917,14]
[342950100,1732217463605,-581.503174,0.00041917,14]
[342950101,1732217463615,-500.0,0.00041917,11]
[342950102,1732217463624,-151.0,0.00041917,14]
[342950103,1732217463633,-313.221751,0.00041917,14]
[342950104,1732217463642,-313.221751,0.00041917,14]
[342950105,1732217463654,-187.60930341,0.00041917,11]
[342950106,1732217463663,-1774.58,0.00041917,10]
[342950107,1732217463673,-639.64505065,0.00041917,11]
[342950108,1732217463682,-500.0,0.00041917,11]
[342950109,1732217463692,-1061.2,0.00041917,11]
[342950110,1732217463701,-500.0,0.00041917,11]
[342950111,1732217463711,-500.0,0.00041917,11]
[342950112,1732217463721,-678.05,0.00041917,11]
[342950113,1732217463730,-518.39,0.00041917,11]
[342950114,1732217463740,-2438.63,0.00041917,11]
[342950115,1732217463750,-695.85,0.00041917,11]
[342950116,1732217463759,-1019.62,0.00041917,11]
[342950117,1732217463773,-500.0,0.00041917,11]
[342950118,1732217463783,-748.44,0.00041917,11]
[342950119,1732217463792,-290.22501117,0.00041917,11]
[342950120,1732217463801,-500.0,0.00041917,11]
[342950121,1732217463813,-500.0,0.00041917,11]
[342950122,1732217463823,-502.27,0.00041917,11]
[342950123,1732217463832,-505.55,0.00041917,11]
[342950124,1732217463841,-1116.54,0.00041917,11]
[342950125,1732217463852,-500.0,0.00041917,11]
[342950126,1732217463862,-500.0,0.00041917,11]
[342950127,1732217463871,-500.0,0.00041917,11]
[342950128,1732217463882,-639.79,0.00041917,11]
[342950129,1732217463891,-1143.93,0.00041917,10]
[342950130,1732217463904,-500.0,0.00041917,11]
[342950131,1732217463914,-777.56,0.00041917,11]
[342950132,1732217463924,-6107.76,0.00041917,11]
[342950133,1732217463933,-1212.16,0.00041917,11]
[342950134,1732217463943,-500.0,0.00041917,11]
[342950135,1732217463952,-500.0,0.00041917,11]
[342950136,1732217463962,-1511.39,0.0004196,30]
[342950137,1732217463972,-186.72,0.0004197,120]
[342950138,1732217463982,-868.0,0.0004197,30]
[342950139,1732217463991,-4226.6807899,0.00041971,2]
[342950140,1732217464000,-3126.7952825,0.00041971,2]
[342950141,1732217464009,-2731.01,0.00041972,120]
[342950142,1732217464018,-151.0,0.00041973,14]
[342950143,1732217464028,-277.9,0.0004198,120]
[342950144,1732217464037,-150.5,0.0004198,120]
[342950145,1732217464046,-868.0,0.0004198,30]
[342950146,1732217464055,-150.5,0.0004198,120]
[342950147,1732217464065,-151.0,0.0004199,14]
[342950148,1732217464074,-150.5,0.0004199,120]
[342950149,1732217464083,-868.0,0.0004199,30]
[342950150,1732217464093,-150.5,0.0004199,120]
[342950151,1732217464101,-151.0,0.0004199,14]
[342950152,1732217464110,-300.0,0.00041998,120]
[342950153,1732217464119,-1143.43282647,0.00041999,60]
[342950154,1732217464129,-1256.868843,0.00041999,14]
[342950155,1732217464137,-1256.868843,0.00041999,14]
[342950156,1732217464151,-151.0,0.00041999,14]
[342950157,1732217464165,-373.418927,0.00041999,14]
[342950158,1732217464174,-373.418927,0.00041999,14]
[342950159,1732217464183,-151.0,0.00041999,14]
[342950160,1732217464193,-382.551216,0.00041999,14]
[342950161,1732217464202,-151.0,0.00041999,14]
[342950162,1732217464211,-382.551216,0.00041999,14]
[342950163,1732217464378,-224.590002,0.00041999,14]
[342950164,1732217464389,-224.590002,0.00041999,14]
[342950165,1732217464400,-223.142127,0.00041999,14]
[342950166,1732217464409,-223.142127,0.00041999,14]
[342950167,1732217464418,-415.013785,0.00041999,14]
[342950168,1732217464428,-415.013785,0.00041999,14]
[342950169,1732217464437,-50000.0,0.00042,23]
[342950170,1732217464447,-50000.0,0.00042,33]
[342950171,1732217464456,-50000.0,0.00042,14]
[342950172,1732217464465,-500.0,0.00042,30]
[342950173,1732217464475,-299.673936,0.00042,14]
[342950174,1732217464484,-299.673936,0.00042,14]
[342950175,1732217464494,-161.735392,0.00042,14]
[342950176,1732217464503,-161.735392,0.00042,14]
[342950177,1732217464513,-333.39,0.00042,14]
[342950178,1732217464522,-333.39,0.00042,14]
[342950179,1732217464531,-151.0,0.00042,14]
[342950180,1732217464541,-219.815437,0.00042,14]
[342950181,1732217464550,-219.815437,0.00042,14]
[342950182,1732217464560,-208.901966,0.00042,14]
[342950183,1732217464570,-151.0,0.00042,14]
[342950184,1732217464580,-208.901966,0.00042,14]
[342950185,1732217464589,-151.0,0.00042,14]
[342950186,1732217464599,-151.0,0.00042,14]
[342950187,1732217464609,-151.0,0.00042,14]
[342950188,1732217464619,-151.0,0.00042,14]
[342950189,1732217464628,-374.7389,0.00042,14]
[342950190,1732217464637,-374.7389,0.00042,14]
[342950191,1732217464646,-262.5162,0.00042,14]
[342950192,1732217464655,-262.5162,0.00042,14]
[342950193,1732217464665,-151.0,0.00042,120]
[342950194,1732217464674,-264.857564,0.00042,14]
[342950195,1732217464684,-264.857564,0.00042,14]
[342950196,1732217464694,-151.0,0.00042,14]
[342950197,1732217464704,-224.244943,0.00042,14]
[342950198,1732217464714,-224.244943,0.00042,14]
[342950199,1732217464724,-155.041211,0.00042,14]
[342950200,1732217464733,-151.0,0.00042,14]
[342950201,1732217464743,-151.0,0.00042,14]
[342950202,1732217464753,-390.811008,0.00042,14]
[342950203,1732217464763,-390.811008,0.00042,14]
[342950204,1732217464776,-330.6625,0.00042,14]
[342950205,1732217464786,-330.6625,0.00042,14]
[342950206,1732217464796,-465.0803,0.00042,14]
[342950207,1732217464806,-465.0803,0.00042,14]
[342950208,1732217464817,-919.83258,0.00042,14]
[342950209,1732217464827,-919.83258,0.00042,14]
[342950210,1732217464837,-774.8659096,0.00042,120]
[342950211,1732217464849,-526.559534,0.00042,14]
[342950212,1732217464859,-205.058868,0.00042,14]
[342950213,1732217464869,-205.058868,0.00042,14]
[342950214,1732217464878,-553.32888,0.00042,14]
[342950215,1732217464888,-192.18045,0.00042,14]
[342950216,1732217464900,-192.18045,0.00042,14]
[342950217,1732217464909,-151.0,0.00042,14]
[342950218,1732217464919,-268.890161,0.00042,14]
[342950219,1732217464929,-268.890161,0.00042,14]
[342950220,1732217464938,-409.4,0.00042,14]
[342950221,1732217464948,-409.4,0.00042,14]
[342950222,1732217464958,-151.0,0.00042,14]
[342950223,1732217464968,-151.0,0.00042,14]
[342950224,1732217464978,-156.922027,0.00042,14]
[342950225,1732217464988,-156.922027,0.00042,14]
[342950226,1732217464998,-151.0,0.00042,14]
[342950227,1732217465007,-151.0,0.00042,14]
[342950228,1732217465017,-151.0,0.00042,14]
[342950229,1732217465026,-355.875565,0.00042,14]
[342950230,1732217465036,-355.875565,0.00042,14]
[342950231,1732217465045,-531.634416,0.00042,14]
[342950232,1732217465055,-531.634416,0.00042,14]
[342950233,1732217465064,-610.612746,0.00042,14]
[342950234,1732217465074,-465.219636,0.00042,14]
[342950235,1732217465083,-465.219636,0.00042,14]
[342950236,1732217465092,-457.257012,0.00042,14]
[342950237,1732217465101,-457.257012,0.00042,14]
[342950238,1732217465110,-990.526881,0.00042,14]
[342950239,1732217465120,-151.0,0.00042,14]
[342950240,1732217465129,-214.248085,0.00042,14]
[342950241,1732217465138,-214.248085,0.00042,14]
[342950242,1732217465147,-484.845,0.00042,14]
[342950243,1732217465156,-484.845,0.00042,14]
[342950244,1732217465165,-340.256701,0.00042,14]
[342950245,1732217465173,-340.256701,0.00042,14]
[342950246,1732217465183,-151.0,0.00042,14]
[342950247,1732217465192,-151.0,0.00042,14]
[342950248,1732217465201,-296.480572,0.00042,14]
[342950249,1732217465210,-151.0,0.00042,14]
[342950250,1732217465220,-151.0,0.00042,14]
[342950251,1732217465229,-151.0,0.00042,14]
[342950252,1732217465238,-151.0,0.00042,14]
[342950253,1732217465247,-353.394556,0.00042,14]
[342950254,1732217465256,-353.394556,0.00042,14]
[342950255,1732217465265,-621.762382,0.00042,14]
[342950256,1732217465275,-621.762382,0.00042,14]
[342950257,1732217465284,-151.0,0.00042,14]
[342950258,1732217465294,-151.0,0.00042,14]
[342950259,1732217465303,-1029.183445,0.00042,14]
[342950260,1732217465312,-1029.183445,0.00042,14]
[342950261,1732217465321,-621.762382,0.00042,14]
[342950262,1732217465330,-621.762382,0.00042,14]
[342950263,1732217465339,-151.0,0.00042,14]
[342950264,1732217465348,-151.0,0.00042,14]
[342950265,1732217465357,-1029.183445,0.00042,14]
[342950266,1732217465366,-1029.183445,0.00042,14]
[342950267,1732217465375,-588.575198,0.00042,14]
[342950268,1732217465385,-588.575198,0.00042,14]
[342950269,1732217465394,-167.282727,0.00042,14]
[342950270,1732217465404,-167.282727,0.00042,14]
[342950271,1732217465413,-167.282727,0.00042,14]
[342950272,1732217465422,-167.282727,0.00042,14]
[342950273,1732217465432,-151.0,0.00042,14]
[342950274,1732217465441,-151.0,0.00042,14]
[342950275,1732217465450,-1797.46833348,0.00042,14]
[342950276,1732217465459,-576.0,0.00042,2]
[342950277,1732217465468,-104354.93729563,0.00042,30]
[342950278,1732217465478,-669.909396,0.00042,14]
[342950279,1732217465487,-669.909396,0.00042,14]
[342950280,1732217465496,-669.909396,0.00042,14]
[342950281,1732217465505,-669.909396,0.00042,14]
[342950282,1732217465514,-151.0,0.00042027,14]
[342950283,1732217465524,-395.860156,0.00042027,14]
[342950284,1732217465535,-395.860156,0.00042027,14]
[342950285,1732217465544,-532.540821,0.00042027,14]
[342950286,1732217465553,-522.73797,0.00042027,14]
[342950287,1732217465562,-522.73797,0.00042027,14]
[342950288,1732217465571,-532.540821,0.00042027,14]
[342950289,1732217465580,-307.098401,0.00042027,14]
[342950290,1732217465590,-212.117254,0.00042027,7]
[342950291,1732217465598,-307.098401,0.00042027,14]
[342950292,1732217465608,-151.0,0.00042027,14]
[342950293,1732217465618,-212.117254,0.00042027,7]
[342950294,1732217465628,-151.0,0.00042027,14]
[342950295,1732217465638,-570.576073,0.00042027,14]
[342950296,1732217465648,-570.576073,0.00042027,14]
[342950297,1732217465658,-1200.0,0.00042063,60]
[342950298,1732217465667,-1000.0,0.00042063,60]
[342950299,1732217465676,-182.10255,0.00042088,30]
[342950300,1732217465686,-500.0,0.0004209,11]
[342950301,1732217465695,-500.0,0.0004209,11]
[342950302,1732217465704,-685.18,0.0004209,11]
[342950303,1732217465714,-500.0,0.0004209,11]
[342950304,1732217465723,-3088.05,0.0004209,11]
[342950305,1732217465734,-620.25,0.0004209,11]
[342950306,1732217465744,-636.7269611,0.0004209,11]
[342950307,1732217465754,-500.0,0.0004209,11]
[342950308,1732217465767,-1081.59,0.0004209,11]
[342950309,1732217465776,-382.34431307,0.0004209,11]
[342950310,1732217465785,-200.63134889,0.0004209,11]
[342950311,1732217465795,-476.95378042,0.0004209,11]
[342950312,1732217465806,-5747.63064506,0.0004209,2]
[342950313,1732217465816,-548.38,0.0004209,11]
[342950314,1732217465826,-5924.49,0.0004209,2]
[342950315,1732217465836,-3131.34711926,0.0004209,2]
[342950316,1732217465846,-180.91644052,0.0004209,2]
[342950317,1732217465856,-741.81,0.0004209,11]
[342950318,1732217465866,-608.57,0.0004209,11]
[342950319,1732217465876,-1091.24,0.0004209,11]
[342950320,1732217465886,-318.32,0.000421,58]
[342950321,1732217465896,-1013.02,0.000421,58]
[342950322,1732217465906,-150.0,0.00042127,2]
[342950323,1732217465915,-156.01117899,0.00042137,30]
[342950324,1732217465925,-661.46610465,0.00042188,120]
[342950325,1732217465936,-800.0,0.00042188,120]
[342950326,1732217465945,-703.2,0.00042189,7]
[342950327,1732217465955,-300.0,0.00042189,120]
[342950328,1732217465964,-300.0,0.0004219,120]
[342950329,1732217465974,-250000.0,0.0004219,11]
[342950330,1732217465984,-151.0,0.0004219,14]
[342950331,1732217465994,-151.0,0.0004219,14]
[342950332,1732217466003,-161.735392,0.0004219,14]
[342950333,1732217466012,-161.735392,0.0004219,14]
[342950334,1732217466022,-333.39,0.0004219,14]
[342950335,1732217466031,-333.39,0.0004219,14]
[342950336,1732217466041,-208.901966,0.0004219,14]
[342950337,1732217466050,-151.0,0.0004219,14]
[342950338,1732217466059,-208.901966,0.0004219,14]
[342950339,1732217466070,-151.0,0.0004219,14]
[342950340,1732217466080,-151.0,0.0004219,14]
[342950341,1732217466089,-151.0,0.0004219,14]
[342950342,1732217466099,-151.0,0.0004219,14]
[342950343,1732217466108,-374.7389,0.0004219,14]
[342950344,1732217466117,-374.7389,0.0004219,14]
[342950345,1732217466127,-262.5162,0.0004219,14]
[342950346,1732217466135,-262.5162,0.0004219,14]
[342950347,1732217466145,-264.857564,0.0004219,14]
[342950348,1732217466155,-264.857564,0.0004219,14]
[342950349,1732217466165,-151.0,0.0004219,14]
[342950350,1732217466175,-224.244943,0.0004219,14]
[342950351,1732217466185,-224.244943,0.0004219,14]
[342950352,1732217466194,-280.58163,0.0004219,14]
[342950353,1732217466204,-151.0,0.0004219,14]
[342950354,1732217466213,-390.811008,0.0004219,14]
[342950355,1732217466222,-390.811008,0.0004219,14]
[342950356,1732217466231,-330.6625,0.0004219,14]
[342950357,1732217466241,-330.6625,0.0004219,14]
[342950358,1732217466251,-465.0803,0.0004219,14]
[342950359,1732217466260,-465.0803,0.0004219,14]
[342950360,1732217466269,-919.83258,0.0004219,14]
[342950361,1732217466279,-919.83258,0.0004219,14]
[342950362,1732217466289,-526.559534,0.0004219,14]
[342950363,1732217466298,-205.058868,0.0004219,14]
[342950364,1732217466308,-205.058868,0.0004219,14]
[342950365,1732217466317,-553.32888,0.0004219,14]
[342950366,1732217466326,-192.18045,0.0004219,14]
[342950367,1732217466335,-192.18045,0.0004219,14]
[342950368,1732217466344,-151.0,0.0004219,14]
[342950369,1732217466354,-414.786101,0.0004219,14]
[342950370,1732217466363,-151.0,0.0004219,14]
[342950371,1732217466372,-988.511237,0.0004219,14]
[342950372,1732217466381,-414.786101,0.0004219,14]
[342950373,1732217466390,-988.511237,0.0004219,14]
[342950374,1732217466401,-216.682596,0.0004219,14]
[342950375,1732217466410,-216.682596,0.0004219,14]
[342950376,1732217466420,-151.0,0.0004219,14]
[342950377,1732217466430,-151.0,0.0004219,14]
[342950378,1732217466438,-584.228945,0.0004219,14]
[342950379,1732217466447,-151.0,0.0004219,14]
[342950380,1732217466456,-584.228945,0.0004219,14]
[342950381,1732217466466,-754.734951,0.0004219,14]
[342950382,1732217466475,-754.734951,0.0004219,14]
[342950383,1732217466484,-151.0,0.0004219,14]
[342950384,1732217466493,-531.392661,0.0004219,14]
[342950385,1732217466503,-531.392661,0.0004219,14]
[342950386,1732217466512,-257.046829,0.0004219,14]
[342950387,1732217466522,-257.046829,0.0004219,14]
[342950388,1732217466532,-151.0,0.0004219,14]
[342950389,1732217466541,-257.777623,0.0004219,14]
[342950390,1732217466551,-257.777623,0.0004219,14]
[342950391,1732217466560,-610.612746,0.0004219,14]
[342950392,1732217466569,-151.0,0.0004219,14]
[342950393,1732217466579,-465.219636,0.0004219,14]
[342950394,1732217466588,-653.448917,0.0004219,14]
[342950395,1732217466597,-465.219636,0.0004219,14]
[342950396,1732217466606,-653.448917,0.0004219,14]
[342950397,1732217466615,-457.257012,0.0004219,14]
[342950398,1732217466624,-457.257012,0.0004219,14]
[342950399,1732217466633,-151.0,0.0004219,14]
[342950400,1732217466642,-151.0,0.0004219,14]
[342950401,1732217466654,-990.526881,0.0004219,14]
[342950402,1732217466663,-151.0,0.0004219,14]
[342950403,1732217466672,-214.248085,0.0004219,14]
[342950404,1732217466682,-214.248085,0.0004219,14]
[342950405,1732217466691,-484.845,0.0004219,14]
[342950406,1732217466700,-484.845,0.0004219,14]
[342950407,1732217466710,-340.256701,0.0004219,14]
[342950408,1732217466719,-340.256701,0.0004219,14]
[342950409,1732217466728,-151.0,0.0004219,14]
[342950410,1732217466738,-151.0,0.0004219,14]
[342950411,1732217466747,-318.982561,0.0004219,14]
[342950412,1732217466757,-318.982561,0.0004219,14]
[342950413,1732217466767,-581.503174,0.0004219,14]
[342950414,1732217466778,-581.503174,0.0004219,14]
[342950415,1732217466787,-151.0,0.0004219,14]
[342950416,1732217466796,-151.0,0.0004219,14]
[342950417,1732217466805,-313.221751,0.0004219,14]
[342950418,1732217466815,-313.221751,0.0004219,14]
[342950419,1732217466824,-395.860156,0.0004219,14]
[342950420,1732217466833,-395.860156,0.0004219,14]
[342950421,1732217466844,-532.540821,0.0004219,14]
[342950422,1732217466855,-522.73797,0.0004219,14]
[342950423,1732217466865,-522.73797,0.0004219,14]
[342950424,1732217466874,-532.540821,0.0004219,14]
[342950425,1732217466883,-151.0,0.0004219,14]
[342950426,1732217466893,-151.0,0.0004219,14]
[342950427,1732217466904,-307.098401,0.0004219,14]
[342950428,1732217466913,-212.117254,0.0004219,7]
[342950429,1732217466923,-307.098401,0.0004219,14]
[342950430,1732217466932,-151.0,0.0004219,14]
[342950431,1732217466942,-151.0,0.0004219,14]
[342950432,1732217466953,-212.117254,0.0004219,7]
[342950433,1732217466962,-151.0,0.0004219,14]
[342950434,1732217466971,-151.0,0.0004219,14]
[342950435,1732217466981,-353.394556,0.0004219,14]
[342950436,1732217466990,-570.576073,0.0004219,14]
[342950437,1732217466999,-353.394556,0.0004219,14]
[342950438,1732217467009,-570.576073,0.0004219,14]
[342950439,1732217467019,-621.762382,0.0004219,14]
[342950440,1732217467028,-151.0,0.0004219,14]
[342950441,1732217467037,-1029.183445,0.0004219,14]
[342950442,1732217467046,-621.762382,0.0004219,14]
[342950443,1732217467056,-187.75591,0.0004219,14]
[342950444,1732217467065,-1029.183445,0.0004219,14]
[342950445,1732217467075,-1256.868843,0.0004219,14]
[342950446,1732217467084,-588.575198,0.0004219,14]
[342950447,1732217467093,-1256.868843,0.0004219,14]
[342950448,1732217467102,-588.575198,0.0004219,14]
[342950449,1732217467111,-167.282727,0.0004219,14]
[342950450,1732217467120,-167.282727,0.0004219,14]
[342950451,1732217467129,-151.0,0.0004219,14]
[342950452,1732217467138,-151.0,0.0004219,14]
[342950453,1732217467149,-373.418927,0.0004219,14]
[342950454,1732217467158,-373.418927,0.0004219,14]
[342950455,1732217467168,-151.0,0.0004219,14]
[342950456,1732217467177,-382.551216,0.0004219,14]
[342950457,1732217467186,-151.0,0.0004219,14]
[342950458,1732217467196,-382.551216,0.0004219,14]
[342950459,1732217467206,-151.0,0.0004219,14]
[342950460,1732217467215,-151.0,0.0004219,14]
[342950461,1732217467225,-224.590002,0.0004219,14]
[342950462,1732217467234,-224.590002,0.0004219,14]
[342950463,1732217467243,-1170.921735,0.0004219,14]
[342950464,1732217467252,-223.142127,0.0004219,14]
[342950465,1732217467262,-1170.921735,0.0004219,14]
[342950466,1732217467271,-669.909396,0.0004219,14]
[342950467,1732217467280,-223.142127,0.0004219,14]
[342950468,1732217467289,-151.0,0.0004219,14]
[342950469,1732217467298,-669.909396,0.0004219,14]
[342950470,1732217467308,-417.95,0.0004219,7]
[342950471,1732217467317,-417.95,0.0004219,7]
[342950472,1732217467327,-214.527844,0.0004219,14]
[342950473,1732217467336,-214.527844,0.0004219,14]
[342950474,1732217467346,-208.428985,0.0004219,14]
[342950475,1732217467356,-151.0,0.0004219,14]
[342950476,1732217467365,-415.013785,0.0004219,14]
[342950477,1732217467374,-151.0,0.0004219,14]
[342950478,1732217467383,-415.013785,0.0004219,14]
[342950479,1732217467393,-5195.93200305,0.00042191,11]
[342950480,1732217467406,-500.0,0.00042191,30]
[342950481,1732217467420,-299.673936,0.00042191,14]
[342950482,1732217467575,-299.673936,0.00042191,14]
[342950483,1732217467585,-200.311551,0.00042191,14]
[342950484,1732217467594,-219.815437,0.00042191,14]
[342950485,1732217467604,-219.815437,0.00042191,14]
[342950486,1732217467613,-151.0,0.00042191,14]
[342950487,1732217467622,-268.890161,0.00042191,14]
[342950488,1732217467631,-268.890161,0.00042191,14]
[342950489,1732217467640,-409.4,0.00042191,14]
[342950490,1732217467656,-409.4,0.00042191,14]
[342950491,1732217467665,-151.0,0.00042191,14]
[342950492,1732217467675,-151.0,0.00042191,14]
[342950493,1732217467684,-156.922027,0.00042191,14]
[342950494,1732217467694,-156.922027,0.00042191,14]
[342950495,1732217467703,-151.0,0.00042191,14]
[342950496,1732217467712,-151.0,0.00042191,14]
[342950497,1732217467722,-151.0,0.00042191,14]
[342950498,1732217467731,-355.875565,0.00042191,14]
[342950499,1732217467740,-355.875565,0.00042191,14]
[342950500,1732217467750,-531.634416,0.00042191,14]
[342950501,1732217467759,-531.634416,0.00042191,14]
[342950502,1732217467771,-329.09726023,0.00042191,11]
[342950503,1732217467781,-766.72,0.00042191,11]
[342950504,1732217467791,-500.0,0.00042191,11]
[342950505,1732217467800,-1774.58,0.00042191,10]
[342950506,1732217467809,-500.0,0.00042191,11]
[342950507,1732217467820,-1061.2,0.00042191,11]
[342950508,1732217467830,-500.0,0.00042191,11]
[342950509,1732217467840,-500.0,0.00042191,11]
[342950510,1732217467850,-678.05,0.00042191,11]
[342950511,1732217467859,-518.39,0.00042191,11]
[342950512,1732217467869,-2438.63,0.00042191,11]
[342950513,1732217467878,-695.85,0.00042191,11]
[342950514,1732217467888,-1019.62,0.00042191,11]
[342950515,1732217467897,-500.0,0.00042191,11]
[342950516,1732217467910,-748.44,0.00042191,11]
[342950517,1732217467919,-500.0,0.00042191,11]
[342950518,1732217467929,-500.0,0.00042191,11]
[342950519,1732217467938,-502.27,0.00042191,11]
[342950520,1732217467947,-505.55,0.00042191,11]